[Event "NJSK 2024 B"]
[Site "Groningen, Netherlands"]
[Date "2024.05.03"]
[Round "7.4"]
[White "Kshirsagar, Pranav"]
[Black "Van Batenburg, Mees"]
[Result "0-1"]
[TimeControl "90min/40moves + 30min + 30sec/move"]
[WhiteElo "1957"]
[BlackElo "2110"]

1. d4 {[%clk 01:29:12]} {[%emt 00:01:48]} e6 {[%clk 01:30:19]} {[%emt
00:00:41]} 2. c4 {[%clk 01:29:27]} {[%emt 00:00:15]} f5 {[%clk 01:30:44]}
{[%emt 00:00:05]} 3. Nf3 {[%clk 01:29:29]} {[%emt 00:00:28]} Nf6 {[%clk
01:31:09]} {[%emt 00:00:05]} 4. g3 {[%clk 01:29:51]} {[%emt 00:00:08]} Be7
{[%clk 01:31:35]} {[%emt 00:00:04]} 5. Bg2 {[%clk 01:30:16]} {[%emt 00:00:05]}
d6 {[%clk 01:31:57]} {[%emt 00:00:08]} 6. O-O {[%clk 01:29:42]} {[%emt
00:01:03]} O-O {[%clk 01:32:22]} {[%emt 00:00:05]} 7. Nc3 {[%clk 01:28:18]}
{[%emt 00:01:55]} Ne4 {[%clk 01:32:47]} {[%emt 00:00:05]} 8. Nxe4 {[%clk
01:23:54]} {[%emt 00:04:55]} fxe4 {[%clk 01:33:09]} {[%emt 00:00:08]} 9. Nd2
{[%clk 01:24:16]} {[%emt 00:00:08]} d5 {[%clk 01:33:33]} {[%emt 00:00:06]} 10.
b3 {[%clk 01:18:24]} {[%emt 00:06:22]} Bf6 {[%clk 01:28:09]} {[%emt 00:05:54]}
11. Bb2 {[%clk 01:18:32]} {[%emt 00:00:22]} c5 {[%clk 01:27:56]} {[%emt
00:00:43]} 12. cxd5 {[%clk 01:16:38]} {[%emt 00:02:25]} exd5 {[%clk 01:26:52]}
{[%emt 00:01:35]} 13. e3 {[%clk 01:08:01]} {[%emt 00:09:07]} Nc6 {[%clk
01:25:22]} {[%emt 00:01:59]} 14. Nb1 {[%clk 01:06:14]} {[%emt 00:02:17]} cxd4
{[%clk 01:20:32]} {[%emt 00:05:20]} 15. exd4 {[%clk 01:05:01]} {[%emt
00:01:43]} Qb6 {[%clk 01:19:41]} {[%emt 00:01:21]} 16. Nc3 {[%clk 01:05:05]}
{[%emt 00:00:26]} Qxd4 {[%clk 01:16:54]} {[%emt 00:03:17]} 17. Qh5 {[%clk
00:55:51]} {[%emt 00:09:43]} Qd2 {[%clk 01:13:01]} {[%emt 00:04:24]} 18. Na4
{[%clk 00:46:14]} {[%emt 00:10:08]} Qa5 {[%clk 01:01:06]} {[%emt 00:12:25]} 19.
Rad1 {[%clk 00:36:35]} {[%emt 00:10:08]} Be6 {[%clk 01:00:10]} {[%emt
00:01:26]} 20. Qe2 {[%clk 00:31:29]} {[%emt 00:05:36]} Ne5 {[%clk 00:54:56]}
{[%emt 00:05:44]} 21. Bxe5 {[%clk 00:25:57]} {[%emt 00:06:02]} Bxe5 {[%clk
00:55:17]} {[%emt 00:00:08]} 22. f3 {[%clk 00:26:08]} {[%emt 00:00:19]} b5
{[%clk 00:40:19]} {[%emt 00:15:29]} 23. fxe4 {[%clk 00:18:37]} {[%emt
00:08:01]} Rxf1+ {[%clk 00:30:57]} {[%emt 00:09:52]} 24. Bxf1 {[%clk 00:17:58]}
{[%emt 00:01:09]} bxa4 {[%clk 00:30:14]} {[%emt 00:01:14]} 25. exd5 {[%clk
00:16:53]} {[%emt 00:01:33]} Qc5+ {[%clk 00:30:15]} {[%emt 00:00:31]} 26. Kh1
{[%clk 00:17:17]} {[%emt 00:00:07]} Bxd5+ {[%clk 00:30:02]} {[%emt 00:00:42]}
27. Rxd5 {[%clk 00:17:07]} {[%emt 00:00:40]} Qxd5+ {[%clk 00:30:27]} {[%emt
00:00:05]} 28. Bg2 {[%clk 00:17:33]} {[%emt 00:00:05]} Qd8 {[%clk 00:30:05]}
{[%emt 00:00:52]} 29. Qc4+ {[%clk 00:15:55]} {[%emt 00:02:08]} Kh8 {[%clk
00:30:24]} {[%emt 00:00:11]} 30. Bxa8 {[%clk 00:16:21]} {[%emt 00:00:04]} Qxa8+
{[%clk 00:30:50]} {[%emt 00:00:04]} 31. Kg1 {[%clk 00:16:38]} {[%emt 00:00:13]}
axb3 {[%clk 00:31:05]} {[%emt 00:00:16]} 32. axb3 {[%clk 00:16:58]} {[%emt
00:00:10]} h6 {[%clk 00:29:08]} {[%emt 00:02:26]} 33. Qd3 {[%clk 00:16:45]}
{[%emt 00:00:43]} Bc7 {[%clk 00:28:49]} {[%emt 00:00:49]} 34. h4 {[%clk
00:16:15]} {[%emt 00:01:00]} Qc6 {[%clk 00:26:34]} {[%emt 00:02:46]} 35. Kh2
{[%clk 00:15:42]} {[%emt 00:01:03]} Qd6 {[%clk 00:25:34]} {[%emt 00:01:31]} 36.
Qf3 {[%clk 00:15:58]} {[%emt 00:00:14]} Qf6 {[%clk 00:21:43]} {[%emt 00:04:21]}
37. Qa8+ {[%clk 00:15:49]} {[%emt 00:00:38]} Kh7 {[%clk 00:22:08]} {[%emt
00:00:06]} 38. Kg2 {[%clk 00:15:51]} {[%emt 00:00:28]} Qg6 {[%clk 00:21:52]}
{[%emt 00:00:46]} 39. Qf3 {[%clk 00:16:04]} {[%emt 00:00:16]} h5 {[%clk
00:21:37]} {[%emt 00:00:45]} 40. Kh2 {[%clk 00:15:59]} {[%emt 00:00:36]} a5
{[%clk 00:21:15]} {[%emt 00:00:52]} 41. Kg2 {[%clk 00:16:17]} {[%emt 00:00:12]}
Qxg3+ {[%clk 00:21:09]} {[%emt 00:00:35]} 42. Qxg3 {[%clk 00:16:38]} {[%emt
00:00:10]} Bxg3 {[%clk 00:21:35]} {[%emt 00:00:04]} 43. Kxg3 {[%clk 00:16:59]}
{[%emt 00:00:08]} Kg6 {[%clk 00:22:00]} {[%emt 00:00:06]} 44. Kf4 {[%clk
00:17:23]} {[%emt 00:00:07]} Kf6 {[%clk 00:22:24]} {[%emt 00:00:06]} 45. Ke4
{[%clk 00:17:48]} {[%emt 00:00:05]} g5 {[%clk 00:22:40]} {[%emt 00:00:13]} 0-1

[Event "NJSK 2024 B"]
[Site "Groningen, Netherlands"]
[Date "2024.05.03"]
[Round "7.5"]
[White "Zhu, Chenwu"]
[Black "Heus, Daan"]
[Result "1-0"]
[TimeControl "90min/40moves + 30min + 30sec/move"]
[WhiteElo "2020"]
[BlackElo "1921"]

1. e4 {[%clk 01:30:57]} {[%emt 00:00:02]} e5 {[%clk 01:30:53]} {[%emt
00:00:07]} 2. Nf3 {[%clk 01:31:24]} {[%emt 00:00:03]} Nc6 {[%clk 01:31:15]}
{[%emt 00:00:08]} 3. Nc3 {[%clk 01:31:51]} {[%emt 00:00:02]} Nf6 {[%clk
01:31:34]} {[%emt 00:00:11]} 4. d4 {[%clk 01:32:18]} {[%emt 00:00:04]} exd4
{[%clk 01:31:52]} {[%emt 00:00:12]} 5. Nxd4 {[%clk 01:32:44]} {[%emt 00:00:04]}
Bb4 {[%clk 01:32:00]} {[%emt 00:00:23]} 6. Nxc6 {[%clk 01:33:10]} {[%emt
00:00:04]} bxc6 {[%clk 01:32:20]} {[%emt 00:00:09]} 7. Bd3 {[%clk 01:33:34]}
{[%emt 00:00:05]} d5 {[%clk 01:32:09]} {[%emt 00:00:41]} 8. exd5 {[%clk
01:34:00]} {[%emt 00:00:04]} cxd5 {[%clk 01:32:30]} {[%emt 00:00:09]} 9. O-O
{[%clk 01:34:26]} {[%emt 00:00:03]} O-O {[%clk 01:32:45]} {[%emt 00:00:16]} 10.
Bg5 {[%clk 01:34:35]} {[%emt 00:00:21]} c6 {[%clk 01:32:22]} {[%emt 00:00:54]}
11. Qf3 {[%clk 01:34:55]} {[%emt 00:00:10]} Bd6 {[%clk 01:32:20]} {[%emt
00:00:32]} 12. h3 {[%clk 01:35:14]} {[%emt 00:00:11]} Rb8 {[%clk 01:31:50]}
{[%emt 00:01:00]} 13. Rab1 {[%clk 01:35:29]} {[%emt 00:00:14]} h6 {[%clk
01:31:36]} {[%emt 00:00:45]} 14. Bf4 {[%clk 01:33:22]} {[%emt 00:02:38]} Be6
{[%clk 01:25:59]} {[%emt 00:06:07]} 15. Ne2 {[%clk 01:33:03]} {[%emt 00:00:48]}
c5 {[%clk 01:25:07]} {[%emt 00:01:23]} 16. c3 {[%clk 01:32:24]} {[%emt
00:01:10]} Re8 {[%clk 01:20:58]} {[%emt 00:04:39]} 17. Rfe1 {[%clk 01:32:26]}
{[%emt 00:00:27]} Ne4 {[%clk 01:08:03]} {[%emt 00:13:25]} 18. b3 {[%clk
01:16:31]} {[%emt 00:16:26]} a5 {[%clk 00:56:44]} {[%emt 00:11:49]} 19. Rbd1
{[%clk 01:09:18]} {[%emt 00:07:42]} Ng5 {[%clk 00:51:56]} {[%emt 00:05:19]} 20.
Qg3 {[%clk 01:07:32]} {[%emt 00:02:16]} Bxf4 {[%clk 00:46:10]} {[%emt
00:06:16]} 21. Nxf4 {[%clk 01:07:22]} {[%emt 00:00:41]} Qc7 {[%clk 00:36:35]}
{[%emt 00:10:05]} 22. h4 {[%clk 01:06:00]} {[%emt 00:01:51]} Nh7 {[%clk
00:35:47]} {[%emt 00:01:17]} 23. Bxh7+ {[%clk 01:04:22]} {[%emt 00:02:08]} Kxh7
{[%clk 00:34:50]} {[%emt 00:01:28]} 24. Qd3+ {[%clk 01:02:50]} {[%emt
00:02:02]} Kg8 {[%clk 00:30:22]} {[%emt 00:04:58]} 25. Nxd5 {[%clk 01:02:24]}
{[%emt 00:00:56]} Bxd5 {[%clk 00:30:00]} {[%emt 00:00:52]} 26. Rxe8+ {[%clk
01:00:51]} {[%emt 00:02:02]} Rxe8 {[%clk 00:30:20]} {[%emt 00:00:10]} 27. Qxd5
{[%clk 01:01:18]} {[%emt 00:00:03]} Re2 {[%clk 00:24:24]} {[%emt 00:06:27]} 28.
a4 {[%clk 00:54:23]} {[%emt 00:07:26]} Qe7 {[%clk 00:18:53]} {[%emt 00:06:01]}
29. Qd8+ {[%clk 00:52:12]} {[%emt 00:02:40]} Qxd8 {[%clk 00:19:02]} {[%emt
00:00:21]} 30. Rxd8+ {[%clk 00:52:38]} {[%emt 00:00:05]} Kh7 {[%clk 00:19:22]}
{[%emt 00:00:10]} 31. c4 {[%clk 00:52:46]} {[%emt 00:00:22]} Rb2 {[%clk
00:17:59]} {[%emt 00:01:53]} 32. Rb8 {[%clk 00:53:01]} {[%emt 00:00:15]} Kg6
{[%clk 00:17:28]} {[%emt 00:01:00]} 33. Rb5 {[%clk 00:52:34]} {[%emt 00:00:57]}
Kf6 {[%clk 00:15:28]} {[%emt 00:02:31]} 34. Rxa5 {[%clk 00:51:26]} {[%emt
00:01:38]} Rxb3 {[%clk 00:15:48]} {[%emt 00:00:10]} 35. Rxc5 {[%clk 00:51:53]}
{[%emt 00:00:03]} Rb4 {[%clk 00:15:28]} {[%emt 00:00:50]} 36. a5 {[%clk
00:52:12]} {[%emt 00:00:11]} Ra4 {[%clk 00:15:43]} {[%emt 00:00:16]} 37. Kf1
{[%clk 00:48:54]} {[%emt 00:03:48]} Ke6 {[%clk 00:14:43]} {[%emt 00:01:30]} 38.
Ke2 {[%clk 00:48:34]} {[%emt 00:00:49]} Kd6 {[%clk 00:14:26]} {[%emt 00:00:48]}
39. Rd5+ {[%clk 00:48:50]} {[%emt 00:00:14]} Kc6 {[%clk 00:14:07]} {[%emt
00:00:49]} 40. Kd3 {[%clk 00:49:04]} {[%emt 00:00:15]} Ra2 {[%clk 00:12:42]}
{[%emt 00:01:56]} 41. Rf5 {[%clk 00:49:18]} {[%emt 00:00:16]} f6 {[%clk
00:12:30]} {[%emt 00:00:42]} 42. h5 {[%clk 00:49:22]} {[%emt 00:00:26]} Kd6
{[%clk 00:11:57]} {[%emt 00:01:03]} 43. Kc3 {[%clk 00:49:02]} {[%emt 00:00:49]}
Ke6 {[%clk 00:11:53]} {[%emt 00:00:34]} 44. g4 {[%clk 00:49:23]} {[%emt
00:00:09]} Kf7 {[%clk 00:11:17]} {[%emt 00:01:07]} 45. Kb4 {[%clk 00:49:34]}
{[%emt 00:00:19]} g6 {[%clk 00:11:25]} {[%emt 00:00:21]} 46. hxg6+ {[%clk
00:49:46]} {[%emt 00:00:18]} Kxg6 {[%clk 00:11:46]} {[%emt 00:00:09]} 47. f3
{[%clk 00:50:02]} {[%emt 00:00:14]} Rb2+ {[%clk 00:11:24]} {[%emt 00:00:53]} 48.
Kc5 {[%clk 00:50:17]} {[%emt 00:00:13]} Kf7 {[%clk 00:11:26]} {[%emt 00:00:30]}
49. a6 {[%clk 00:50:40]} {[%emt 00:00:07]} Ke7 {[%clk 00:11:34]} {[%emt
00:00:21]} 50. a7 {[%clk 00:50:57]} {[%emt 00:00:13]} Ra2 {[%clk 00:11:59]}
{[%emt 00:00:05]} 51. Kb6 {[%clk 00:51:23]} {[%emt 00:00:04]} 1-0

[Event "NJSK 2024 B"]
[Site "Groningen, Netherlands"]
[Date "2024.05.03"]
[Round "7.6"]
[White "Lopes, Samuel"]
[Black "Kumar, Prajit Sai"]
[Result "0-1"]
[TimeControl "90min/40moves + 30min + 30sec/move"]
[WhiteElo "1906"]
[BlackElo "2211"]

1. e4 {[%clk 01:30:22]} {[%emt 00:00:37]} c5 {[%clk 01:30:44]} {[%emt
00:00:17]} 2. Nf3 {[%clk 01:30:38]} {[%emt 00:00:14]} Nc6 {[%clk 01:31:11]}
{[%emt 00:00:04]} 3. Bc4 {[%clk 01:30:57]} {[%emt 00:00:11]} Nf6 {[%clk
01:30:25]} {[%emt 00:01:15]} 4. e5 {[%clk 01:30:59]} {[%emt 00:00:27]} Ng4
{[%clk 01:30:43]} {[%emt 00:00:12]} 5. Qe2 {[%clk 01:31:17]} {[%emt 00:00:12]}
f6 {[%clk 01:30:44]} {[%emt 00:00:29]} 6. exf6 {[%clk 01:23:17]} {[%emt
00:08:30]} Nxf6 {[%clk 01:31:04]} {[%emt 00:00:09]} 7. O-O {[%clk 01:22:29]}
{[%emt 00:01:18]} e6 {[%clk 01:31:18]} {[%emt 00:00:16]} 8. c3 {[%clk
01:20:00]} {[%emt 00:02:59]} d5 {[%clk 01:31:35]} {[%emt 00:00:13]} 9. Bb5
{[%clk 01:20:14]} {[%emt 00:00:16]} Bd6 {[%clk 01:24:29]} {[%emt 00:07:36]} 10.
d4 {[%clk 01:15:29]} {[%emt 00:05:15]} O-O {[%clk 01:23:57]} {[%emt 00:00:57]}
11. Bg5 {[%clk 01:01:49]} {[%emt 00:14:14]} Qc7 {[%clk 01:15:17]} {[%emt
00:09:10]} 12. Bh4 {[%clk 00:59:07]} {[%emt 00:03:13]} Bd7 {[%clk 01:12:36]}
{[%emt 00:03:11]} 13. Bg3 {[%clk 00:56:28]} {[%emt 00:03:10]} Bxg3 {[%clk
01:06:12]} {[%emt 00:06:54]} 14. hxg3 {[%clk 00:56:44]} {[%emt 00:00:13]} Rae8
{[%clk 01:06:15]} {[%emt 00:00:27]} 15. Bxc6 {[%clk 00:52:19]} {[%emt
00:04:55]} Bxc6 {[%clk 01:04:42]} {[%emt 00:02:03]} 16. Ne5 {[%clk 00:50:32]}
{[%emt 00:02:16]} Nd7 {[%clk 01:03:07]} {[%emt 00:02:05]} 17. Nxd7 {[%clk
00:43:36]} {[%emt 00:07:26]} Bxd7 {[%emt 00:03:46]} 18. Re1 {[%clk 00:38:34]}
{[%emt 00:05:29]} Rf5 {[%clk 00:56:45]} {[%emt 00:03:39]} 19. f4 {[%clk
00:28:05]} {[%emt 00:10:59]} g5 {[%clk 00:54:24]} {[%emt 00:02:50]} 20. Rf1
{[%clk 00:25:45]} {[%emt 00:02:50]} Ref8 {[%clk 00:45:22]} {[%emt 00:09:32]} 21.
Nd2 {[%emt 00:01:12]} Qb6 {[%clk 00:36:08]} {[%emt 00:09:43]} 22. Nf3 {[%clk
00:22:10]} {[%emt 00:03:25]} Bb5 {[%clk 00:35:26]} {[%emt 00:01:12]} 23. dxc5
{[%clk 00:22:16]} {[%emt 00:00:24]} Qa6 {[%clk 00:34:24]} {[%emt 00:01:32]} 24.
Qd2 {[%clk 00:21:38]} {[%emt 00:01:09]} Bxf1 {[%clk 00:34:42]} {[%emt
00:00:12]} 25. Rxf1 {[%clk 00:22:03]} {[%emt 00:00:05]} gxf4 {[%clk 00:34:47]}
{[%emt 00:00:25]} 26. Nd4 {[%clk 00:21:07]} {[%emt 00:01:26]} R5f6 {[%clk
00:33:40]} {[%emt 00:01:38]} 27. Rxf4 {[%clk 00:21:03]} {[%emt 00:00:33]} e5
{[%clk 00:29:05]} {[%emt 00:05:05]} 28. Rg4+ {[%clk 00:20:35]} {[%emt
00:00:59]} Rg6 {[%clk 00:27:21]} {[%emt 00:02:15]} 29. Rxg6+ {[%clk 00:20:35]}
{[%emt 00:00:30]} hxg6 {[%clk 00:26:18]} {[%emt 00:01:32]} 30. Nf3 {[%clk
00:20:17]} {[%emt 00:00:48]} Qe6 {[%clk 00:25:13]} {[%emt 00:01:35]} 31. Ng5
{[%clk 00:19:37]} {[%emt 00:01:10]} Qd7 {[%clk 00:24:13]} {[%emt 00:01:30]} 32.
Nf3 {[%clk 00:19:20]} {[%emt 00:00:48]} e4 {[%clk 00:22:34]} {[%emt 00:02:09]}
33. Nh2 {[%clk 00:16:08]} {[%emt 00:03:41]} Qf5 {[%clk 00:21:48]} {[%emt
00:01:17]} 34. b4 {[%clk 00:15:19]} {[%emt 00:01:20]} e3 {[%clk 00:18:02]}
{[%emt 00:04:16]} 35. Qe1 {[%clk 00:13:51]} {[%emt 00:01:57]} Qd3 {[%clk
00:17:13]} {[%emt 00:01:19]} 36. Ng4 {[%clk 00:05:41]} {[%emt 00:08:41]} e2
{[%clk 00:17:31]} {[%emt 00:00:12]} 37. Nf2 {[%clk 00:04:57]} {[%emt 00:01:14]}
Qe3 {[%clk 00:17:55]} {[%emt 00:00:06]} 0-1

[Event "NJSK 2024 B"]
[Site "Groningen, Netherlands"]
[Date "2024.05.03"]
[Round "7.7"]
[White "Krylov, Philippe"]
[Black "Roolvink, William"]
[Result "1-0"]
[TimeControl "90min/40moves + 30min + 30sec/move"]
[WhiteElo "2007"]
[BlackElo "1966"]

1. d4 {[%clk 01:30:41]} {[%emt 00:00:12]} d5 {[%clk 01:30:59]} 2. c4 {[%clk
01:30:51]} c6 {[%clk 01:31:27]} 3. Nf3 {[%clk 01:31:11]} Nf6 {[%clk 01:31:51]}
4. Qc2 {[%clk 01:31:28]} e6 {[%clk 01:24:37]} 5. e3 {[%clk 01:28:29]} Nbd7
{[%clk 01:24:21]} 6. Nc3 {[%clk 01:28:49]} Bd6 {[%clk 01:24:17]} 7. Bd3 {[%clk
01:29:11]} dxc4 {[%clk 01:22:14]} 8. Bxc4 {[%clk 01:29:30]} b5 {[%clk
01:22:37]} 9. Be2 {[%clk 01:29:53]} Bb7 {[%clk 01:19:10]} 10. O-O {[%clk
01:30:01]} O-O {[%clk 01:15:12]} 11. Rd1 {[%clk 01:29:54]} a6 {[%clk 01:03:40]}
12. e4 {[%clk 01:28:13]} Be7 {[%clk 01:02:12]} 13. e5 {[%clk 01:15:47]} Nd5
{[%clk 00:54:55]} 14. Ne4 {[%clk 01:16:00]} Qb6 {[%clk 00:37:33]} 15. Neg5
{[%clk 01:09:58]} g6 {[%clk 00:36:41]} 16. Qe4 {[%clk 01:09:22]} Kg7 {[%clk
00:31:09]} 17. Bd3 {[%clk 01:03:46]} c5 {[%clk 00:29:37]} 18. h4 {[%clk
00:44:52]} Nc3 {[%clk 00:20:18]} 19. Qf4 {[%clk 00:45:14]} Nxd1 {[%clk
00:12:20]} 20. h5 {[%clk 00:23:46]} {[%emt 00:09:21]} Bxf3 {[%clk 00:04:58]}
{[%emt 00:07:52]} 21. gxf3 {[%clk 00:23:01]} {[%emt 00:01:15]} Bxg5 {[%clk
00:00:42]} {[%emt 00:04:46]} 22. Qxg5 {[%clk 00:23:19]} {[%emt 00:00:12]} f5
{[%clk 00:00:33]} {[%emt 00:00:40]} 23. Qh6+ {[%clk 00:15:41]} {[%emt
00:08:08]} Kg8 {[%clk 00:00:32]} {[%emt 00:00:30]} 24. hxg6 {[%clk 00:15:56]}
{[%emt 00:00:14]} Nf6 {[%clk 00:00:32]} {[%emt 00:00:31]} 25. exf6 {[%clk
00:15:43]} {[%emt 00:00:43]} Qc7 {[%clk 00:00:44]} {[%emt 00:00:18]} 26. Bf4
{[%clk 00:13:44]} {[%emt 00:02:29]} Qd7 {[%clk 00:00:57]} {[%emt 00:00:18]} 27.
f7+ {[%clk 00:13:35]} {[%emt 00:00:39]} Rxf7 {[%clk 00:01:24]} {[%emt
00:00:03]} 28. gxf7+ {[%clk 00:13:56]} {[%emt 00:00:08]} Qxf7 {[%clk 00:01:45]}
{[%emt 00:00:09]} 29. Qg5+ {[%clk 00:13:58]} {[%emt 00:00:28]} Kf8 {[%clk
00:01:42]} {[%emt 00:00:32]} 30. Rxd1 {[%clk 00:14:05]} {[%emt 00:00:24]} cxd4
{[%clk 00:00:48]} {[%emt 00:01:23]} 31. Be5 {[%clk 00:14:12]} {[%emt 00:00:24]}
1-0

[Event "NJSK 2024 B"]
[Site "Groningen, Netherlands"]
[Date "2024.05.03"]
[Round "7.8"]
[White "Fallaux, Storm"]
[Black "Ponomarev, Ivan"]
[Result "1-0"]
[TimeControl "90min/40moves + 30min + 30sec/move"]
[WhiteElo "1905"]
[BlackElo "1924"]

1. e4 {[%clk 01:30:57]} {[%emt 00:00:20]} c5 {[%clk 01:30:58]} 2. Nf3 {[%clk
01:31:22]} e6 {[%clk 01:31:27]} 3. d4 {[%clk 01:31:47]} cxd4 {[%clk 01:31:55]}
4. Nxd4 {[%clk 01:32:13]} Nc6 {[%clk 01:32:21]} 5. Nc3 {[%clk 01:32:31]} Qc7
{[%clk 01:32:36]} 6. g3 {[%clk 01:32:52]} a6 {[%clk 01:29:48]} 7. Bg2 {[%clk
01:33:13]} Nf6 {[%clk 01:27:51]} 8. O-O {[%clk 01:29:52]} Nxd4 {[%clk
01:18:50]} 9. Qxd4 {[%clk 01:30:13]} Bc5 {[%clk 01:19:17]} 10. Bf4 {[%clk
01:30:30]} d6 {[%clk 01:12:16]} 11. Qd2 {[%clk 01:30:36]} O-O {[%clk 01:12:19]}
12. Rad1 {[%clk 01:30:57]} e5 {[%clk 01:07:37]} 13. Bg5 {[%clk 01:30:09]} Ng4
{[%clk 00:55:58]} 14. b4 {[%clk 01:11:30]} Nxf2 {[%clk 00:28:57]} 15. Rxf2
{[%clk 01:00:20]} Bxf2+ {[%clk 00:29:09]} 16. Kxf2 {[%clk 01:00:30]} Be6 {[%clk
00:21:57]} 17. Nd5 {[%clk 00:49:47]} Bxd5 {[%clk 00:21:30]} 18. Qxd5 {[%clk
00:49:48]} Qb6+ {[%clk 00:09:10]} 19. Be3 {[%clk 00:45:25]} Qxb4 {[%clk
00:09:38]} 20. Qxd6 {[%clk 00:44:38]} Qa4 {[%clk 00:09:29]} 21. Qxe5 {[%clk
00:38:20]} Rac8 {[%clk 00:07:16]} {[%emt 00:01:11]} 22. Qd5 {[%clk 00:30:45]}
{[%emt 00:08:05]} Rxc2+ {[%clk 00:07:17]} {[%emt 00:00:29]} 23. Rd2 {[%clk
00:30:21]} {[%emt 00:00:55]} b5 {[%clk 00:03:43]} {[%emt 00:04:04]} 24. e5
{[%clk 00:25:25]} {[%emt 00:05:26]} Rxd2+ {[%clk 00:01:52]} {[%emt 00:02:21]}
25. Bxd2 {[%clk 00:23:38]} {[%emt 00:02:17]} b4 {[%clk 00:00:41]} {[%emt
00:01:41]} 26. Qc4 {[%clk 00:17:58]} {[%emt 00:06:10]} a5 {[%clk 00:00:46]}
{[%emt 00:00:26]} 27. Be3 {[%clk 00:14:14]} {[%emt 00:04:13]} Qa3 {[%clk
00:00:38]} {[%emt 00:00:37]} 28. Bd4 {[%clk 00:10:30]} {[%emt 00:04:14]} a4
{[%clk 00:00:36]} {[%emt 00:00:33]} 29. Bd5 {[%clk 00:10:02]} {[%emt 00:00:57]}
Kh8 {[%clk 00:00:31]} {[%emt 00:00:35]} 30. Kg2 {[%clk 00:10:17]} {[%emt
00:00:16]} b3 {[%clk 00:00:38]} {[%emt 00:00:23]} 31. axb3 {[%clk 00:09:30]}
{[%emt 00:01:17]} axb3 {[%clk 00:01:06]} 32. Qxb3 {[%clk 00:09:25]} {[%emt
00:00:34]} Qc1 {[%clk 00:00:58]} {[%emt 00:00:38]} 33. Bxf7 {[%clk 00:06:43]}
{[%emt 00:03:12]} Qc6+ {[%clk 00:00:37]} {[%emt 00:00:52]} 34. Qd5 {[%clk
00:04:11]} {[%emt 00:03:02]} Qc2+ {[%clk 00:00:39]} {[%emt 00:00:28]} 35. Kh1
{[%clk 00:03:58]} {[%emt 00:00:43]} Qd1+ {[%clk 00:00:58]} {[%emt 00:00:11]} 36.
Bg1 {[%clk 00:04:10]} {[%emt 00:00:18]} Qf1 {[%clk 00:00:33]} {[%emt 00:00:54]}
37. e6 {[%clk 00:04:04]} {[%emt 00:00:36]} h6 {[%clk 00:00:32]} {[%emt
00:00:32]} 38. e7 {[%clk 00:03:55]} {[%emt 00:00:39]} 1-0

[ePGN "0.1;DGT LiveChess/2.2.6"]

[Event "NJSK 2024 C"]
[Site "Groningen, Netherlands"]
[Date "2024.04.27"]
[Round "1.1"]
[White "Ritzerveld, Noah"]
[Black "Okita, Shinsaku"]
[Result "1-0"]
[TimeControl "90min/40moves + 30min + 30sec/move"]
[WhiteElo "2103"]
[BlackElo "1826"]

1. e4 {[%clk 01:30:58]} {[%emt 00:00:02]} c5 {[%clk 01:30:56]} {[%emt
00:00:05]} 2. Nf3 {[%clk 01:31:24]} {[%emt 00:00:04]} d6 {[%clk 01:31:22]}
{[%emt 00:00:04]} 3. d4 {[%clk 01:31:47]} {[%emt 00:00:06]} cxd4 {[%clk
01:31:48]} {[%emt 00:00:04]} 4. Nxd4 {[%clk 01:32:13]} {[%emt 00:00:04]} Nf6
{[%clk 01:32:13]} {[%emt 00:00:05]} 5. Nc3 {[%clk 01:32:37]} {[%emt 00:00:05]}
a6 {[%clk 01:32:39]} {[%emt 00:00:05]} 6. Be2 {[%clk 01:32:38]} {[%emt
00:00:28]} e5 {[%clk 01:31:05]} {[%emt 00:02:05]} 7. Nb3 {[%clk 01:33:01]}
{[%emt 00:00:07]} Be7 {[%clk 01:30:07]} {[%emt 00:01:28]} 8. Be3 {[%clk
01:33:17]} {[%emt 00:00:13]} Be6 {[%clk 01:30:03]} {[%emt 00:00:34]} 9. Nd5
{[%clk 01:33:22]} {[%emt 00:00:25]} Nxd5 {[%clk 01:29:20]} {[%emt 00:01:14]} 10.
exd5 {[%clk 01:33:45]} {[%emt 00:00:06]} Bf5 {[%clk 01:29:45]} {[%emt
00:00:05]} 11. O-O {[%clk 01:33:40]} {[%emt 00:00:35]} O-O {[%clk 01:29:23]}
{[%emt 00:00:52]} 12. Qd2 {[%clk 01:33:36]} {[%emt 00:00:34]} Nd7 {[%clk
01:29:24]} {[%emt 00:00:29]} 13. Na5 {[%clk 01:32:37]} {[%emt 00:01:29]} Qc7
{[%clk 01:27:45]} {[%emt 00:02:10]} 14. c4 {[%clk 01:32:17]} {[%emt 00:00:50]}
Rfe8 {[%clk 01:23:19]} {[%emt 00:04:56]} 15. b4 {[%clk 01:31:02]} {[%emt
00:01:44]} Bg6 {[%clk 01:23:02]} {[%emt 00:00:47]} 16. Rac1 {[%clk 01:29:36]}
{[%emt 00:01:56]} f5 {[%clk 01:21:57]} {[%emt 00:01:36]} 17. f4 {[%clk
01:28:53]} {[%emt 00:01:12]} exf4 {[%clk 01:18:43]} {[%emt 00:03:45]} 18. Bxf4
{[%clk 01:29:04]} {[%emt 00:00:18]} Qb6+ {[%clk 01:18:28]} {[%emt 00:00:46]} 19.
Kh1 {[%clk 01:16:11]} {[%emt 00:13:23]} Bf6 {[%clk 01:15:20]} {[%emt 00:03:37]}
20. Bf3 {[%clk 01:13:53]} {[%emt 00:02:48]} Rac8 {[%clk 01:12:52]} {[%emt
00:02:59]} 21. c5 {[%clk 01:07:13]} {[%emt 00:07:10]} dxc5 {[%clk 01:11:16]}
{[%emt 00:02:06]} 22. Nc4 {[%clk 01:07:35]} {[%emt 00:00:07]} Qxb4 {[%clk
01:10:41]} {[%emt 00:01:05]} 23. Nd6 {[%clk 01:07:50]} {[%emt 00:00:15]} Be5
{[%clk 01:07:52]} {[%emt 00:03:20]} 24. Qxb4 {[%clk 01:06:07]} {[%emt
00:02:12]} cxb4 {[%clk 01:08:04]} {[%emt 00:00:18]} 25. Rxc8 {[%clk 01:05:34]}
{[%emt 00:01:04]} Rxc8 {[%clk 01:05:50]} {[%emt 00:02:44]} 26. Nxc8 {[%clk
01:03:48]} {[%emt 00:02:15]} Bxf4 {[%clk 01:05:54]} {[%emt 00:00:27]} 27. d6
{[%clk 01:04:09]} {[%emt 00:00:09]} Bg5 {[%clk 01:04:24]} {[%emt 00:02:00]} 28.
Bxb7 {[%clk 01:03:43]} {[%emt 00:00:56]} a5 {[%clk 01:03:31]} {[%emt 00:01:22]}
29. Bc6 {[%clk 01:03:00]} {[%emt 00:01:14]} Ne5 {[%clk 01:02:38]} {[%emt
00:01:22]} 30. Ba4 {[%clk 01:02:07]} {[%emt 00:01:23]} f4 {[%clk 01:01:48]}
{[%emt 00:01:20]} 31. d7 {[%clk 00:58:54]} {[%emt 00:03:43]} Be4 {[%clk
01:00:34]} {[%emt 00:01:44]} 32. Re1 {[%clk 00:58:27]} {[%emt 00:00:57]} Bxg2+
{[%clk 01:00:14]} {[%emt 00:00:50]} 33. Kxg2 {[%clk 00:58:32]} {[%emt
00:00:25]} f3+ {[%clk 01:00:24]} {[%emt 00:00:19]} 34. Kf1 {[%clk 00:58:54]}
{[%emt 00:00:08]} Nc4 {[%clk 00:59:44]} {[%emt 00:01:11]} 35. Bb3 {[%clk
00:59:10]} {[%emt 00:00:15]} 1-0